Cogmind - Beta 11 X7 @@@ ROGUE MODE // 2021.09.18 @ 13:06:24 Player: Plexion Result: Destroyed by as-15925 with Assembled F-torch Performance ------------- Evolutions (0) 0 Regions Visited (2) 400 Robots Destroyed (14) 70 Value Destroyed (278) 278 Prototype IDs (1) 20 Alien Tech Used (0) 0 Bonus (0) 0 TOTAL SCORE: 768 Bonus ------- None Cogmind --------- Core Integrity 0/250 Matter 300/300 Energy 100/100 System Corruption 3% Temperature Cool (20) Movement Core (100) Ox1 Location -10/Mines Parts ------- > --- POWER (1) -------- (None) > --- PROPULSION (2) --- (None) > --- UTILITY (2) ------ Small Storage Unit > --- WEAPON (2) ------- (None) > --- INVENTORY (8) ---- Light Ion Engine Light Treads Light Treads Improved Targeting Computer Improved Assault Rifle Improved Assault Rifle Improved Assault Rifle Flail Peak State ------------ > --- POWER ------------ Light Ion Engine > --- PROPULSION ------- Wheel Wheel > --- UTILITY ---------- Small Storage Unit > --- WEAPON ----------- Improved Assault Rifle Light Cannon > --- INVENTORY -------- Light Ion Engine Light Treads Light Treads Improved Assault Rifle Improved Assault Rifle Improved Assault Rifle [Rating: 9] Favorites ----------- Power Light Ion Engine Engine Light Ion Engine Propulsion Wheel Treads Light Treads Wheel Wheel Utility Small Storage Unit Storage Small Storage Unit Weapon Light Cannon Energy Gun Medium Laser Ballistic Gun Improved Assault Rifle Ballistic Cannon Light Cannon Build | -11 -10 -10 ------- Run | Scr Mat Min Slots Evolved . | . . . Power . | . . . Propulsion . | . . . Utility . | . . . Weapon . | . . . Parts Attached 12 | 8 4 . Power 1 | 1 . . Engine 1 | 1 . . Core . | . . . Reactor . | . . . Propulsion 4 | 3 1 . Treads 1 | 1 . . Leg . | . . . Wheel 3 | 2 1 . Hover . | . . . Flight . | . . . Utility 1 | 1 . . Device . | . . . Storage 1 | 1 . . Processor . | . . . Hackware . | . . . Protection . | . . . Artifact . | . . . Weapon 6 | 3 3 . Energy Gun 3 | 3 . . Energy Cannon . | . . . Ballistic Gun 2 | . 2 . Ballistic Cannon 1 | . 1 . Launcher . | . . . Special Weapon . | . . . Impact Weapon . | . . . Slashing Weapon . | . . . Piercing Weapon . | . . . Special Melee Weapon . | . . . Unidentified Prototypes 1 | . 1 . Parts Lost 5 | . . 5 Power 1 | . . 1 Propulsion 2 | . . 2 Utility . | . . . Weapon 2 | . . 2 Highest Loss Streak 5 | . . 5 Average Slot Usage (%) 83 | . 85 81 Engine 13 | . 14 13 Wheel 27 | . 28 26 Storage 14 | . 14 14 Energy Gun 4 | . 8 . Ballistic Gun 11 | . 9 13 Ballistic Cannon 11 | . 9 13 Naked Turns . | . . . Heaviest Build 14 | 12 14 14 Greatest Support 20 | 20 20 20 Greatest Overweight (x) 3 | . . 3 Average Overweight (x) . | . . . Largest Inventory Capacity 8 | 8 8 8 Average Capacity 7 | 6 8 8 Most Carried 8 | 4 8 8 Average Carried 6 | 2 5 8 Final Capacity 8 | 8 8 8 Final Carried 8 | 4 8 8 Class Distribution -------------------- 100% | Mutant Dominant Class ---------------- Mutant | -10/Materials Mutant | -10/Mines Resources | -11 -10 -10 ----------- Run | Scr Mat Min Matter Collected 490 | 240 250 . Remotely . | . . . Salvage Created 387 | . 387 . Parts 29 | . 29 . Haulers Intercepted 1 | . 1 . Recyclers Shooed 1 | . 1 . Parts Field Recycled . | . . . Retrieved Matter . | . . . Parts Self-Destructed . | . . . Prevented . | . . . Kills | -11 -10 -10 ------- Run | Scr Mat Min Combat Hostiles Destroyed 9 | . 9 . Guns 6 | . 6 . Cannons 3 | . 3 . Classes Destroyed 5 | . 5 . Worker 3 | . 3 . Hauler 1 | . 1 . Operator 1 | . 1 . Swarmer 3 | . 3 . Grunt 6 | . 6 . Best Kill Streak 6 | . 6 . Combat Bots Only 2 | . 2 . Max Kills in Single Turn 1 | . 1 . Gunslinging . | . . . Exploded . | . . . Melee . | . . . Uniques/NPCs Destroyed . | . . . Combat | -11 -10 -10 -------- Run | Scr Mat Min Damage Taken 834 | . 344 490 Core 251 | . 99 152 Absorbed by Shields . | . . . Core Remaining (%) 100 | 100 . . Volleys Fired 45 | 1 44 . Largest 2 | 2 2 . Hottest 90 | 90 90 . Shots Fired 90 | 2 88 . Gun 62 | 2 60 . Cannon 28 | . 28 . Launcher . | . . . Special . | . . . Kinetic 56 | . 56 . Thermal 17 | 1 16 . Explosive . | . . . Electromagnetic 17 | 1 16 . Robot Hit Streak 6 | 1 6 . Robot Miss Streak 12 | 1 12 . Penetration Max . | . . . Secondary Targets . | . . . Shots Hit Robots 46 | 1 45 . Core Hits 19 | . 19 . Critical Kills 1 | . 1 . Critical Parts Destroyed 1 | . 1 . Critical Strikes 2 | . 2 . Destroy 2 | . 2 . Melee Attacks . | . . . Impact . | . . . Slashing . | . . . Piercing . | . . . Sneak Attacks . | . . . Combat Hostiles . | . . . Follow-up Attacks . | . . . Damage Inflicted 697 | 12 682 3 Guns 429 | 12 417 . Cannons 265 | . 265 . Explosions . | . . . Melee . | . . . Ramming 3 | . . 3 Kinetic 424 | . 424 . Thermal 123 | 12 111 . Explosive . | . . . Electromagnetic 147 | . 147 . Impact . | . . . Slashing . | . . . Piercing . | . . . Highest Corruption 3 | . . 3 Average Corruption 2 | . . 2 Corruption Purged . | . . . Overload Shots . | . . . Overflow Damage . | . . . Projectiles . | . . . Explosions . | . . . Melee . | . . . Knockbacks 3 | . 3 . Impact . | . . . Kinetic 3 | . 3 . Secondary . | . . . Self-Inflicted Damage 1 | . . 1 Shots . | . . . Rammed 4 | . . 4 Targets Rammed 4 | . . 4 Kicked . | . . . Crushed . | . . . Highest Temperature 273 | 30 273 . Average Temperature 93 | 17 97 . Received Heat Transfer 169 | . 69 100 Siege Activations . | . . . Robots Corrupted . | . . . Combat Hostiles . | . . . Parts Fried . | . . . Impact Corruptions . | . . . Robots Melted . | . . . Combat Hostiles . | . . . Parts Melted . | . . . Heat Transferred 370 | 37 333 . Parts Sabotaged . | . . . Parts Stolen . | . . . Parts Stripped . | . . . Power Chain Reactions . | . . . Missiles Intercepted . | . . . Alert | -11 -10 -10 ------- Run | Scr Mat Min Peak Influence 365 | . 365 142 Initial 142 | . . 142 Average 169 | . 219 140 Maximum Alert Level 1 | . 1 . Low Security (%) 72 | 100 44 100 Level 1 27 | . 55 . Level 2 . | . . . Level 3 . | . . . Level 4 . | . . . Level 5 . | . . . High Security . | . . . Max Security . | . . . Squads Dispatched 2 | . 2 . Investigation 1 | . 1 . Extermination . | . . . Reinforcement 1 | . 1 . Assault . | . . . Garrison . | . . . Intercept . | . . . Construction Impeded . | . . . Haulers Reinforced . | . . . Active Scanning Responses . | . . . Cargo Convoy Interrupts . | . . . Stealth | -11 -10 -10 --------- Run | Scr Mat Min Distress Signals 1 | . 1 . Communications Jammed . | . . . Distress Signals . | . . . Times Spotted 35 | . 18 17 Peak Tracking Total 20 | . 6 20 Tactical Retreats 2 | . 1 1 Traps | -11 -10 -10 ------- Run | Scr Mat Min Traps Triggered 2 | . 2 . Indirectly . | . . . Trap Hack Attempts . | . . . Triggered . | . . . Disarmed . | . . . Reprogrammed . | . . . Reused . | . . . Traps Extracted . | . . . Installed . | . . . Triggered . | . . . Machines | -11 -10 -10 ---------- Run | Scr Mat Min Machines Disabled 1 | . 1 . Max in Single Turn 1 | . 1 . Machines Sabotaged . | . . . Garrisons Compromised . | . . . Overloaded Fab Kills . | . . . Fab Network Shutdowns . | . . . Hacking | -11 -10 -10 --------- Run | Scr Mat Min Machines Accessed 3 | . 3 . Terminals 3 | . 3 . Fabricators . | . . . Repair Stations . | . . . Recycling Units . | . . . Scanalyzers . | . . . Garrison Access . | . . . Total Hacks 10 | . 10 . Successful 5 | . 5 . Failed 5 | . 5 . Catastrophic 1 | . 1 . Database Lockouts . | . . . Manual 9 | . 9 . Terminals 10 | . 10 . Fabricators . | . . . Repair Stations . | . . . Recycling Units . | . . . Scanalyzers . | . . . Garrison Access . | . . . Terminal Hacks 2 | . 2 . Robot Analysis 1 | . 1 . Zone Layout 1 | . 1 . Fabricator Hacks . | . . . Repair Station Hacks . | . . . Recycling Unit Hacks . | . . . Scanalyzer . | . . . Garrison Access Hacks . | . . . Unauthorized Hacks 3 | . 3 . Terminals 3 | . 3 . Track 1 | . 1 . Disrupt 2 | . 2 . Fabricators . | . . . Repair Stations . | . . . Recycling Units . | . . . Scanalyzers . | . . . Garrison Access . | . . . Data Cores Recovered . | . . . Used . | . . . Hacking Detections 2 | . 2 . Full Trace Events . | . . . Feedback Events . | . . . Feedback Blocked . | . . . Robot Schematics Acquired . | . . . Robots Built . | . . . Matter . | . . . Time . | . . . Total Robot Build Rating . | . . . Part Schematics Acquired . | . . . Parts Built . | . . . Matter . | . . . Time . | . . . Total Part Build Rating . | . . . Parts Repaired . | . . . Time . | . . . Parts Recycled . | . . . Recycled Matter . | . . . Retrieved Matter . | . . . Retrieved Components . | . . . Parts Scanalyzed . | . . . Part Schematics Acquired . | . . . Parts Damaged . | . . . Bothacking | -11 -10 -10 ------------ Run | Scr Mat Min Used RIF Installer . | . . . Robots Hacked . | . . . Non-combat . | . . . Combat . | . . . Robot Hacks Applied . | . . . Relay Couplers Released . | . . . Robots Rewired . | . . . Allies Hacked . | . . . Hacks Repelled . | . . . Allies | -11 -10 -10 -------- Run | Scr Mat Min Total Allies . | . . . Largest Group . | . . . Highest-Rated Group . | . . . Highest-Rated Ally . | . . . Total Orders . | . . . Ally Attacks . | . . . Total Damage . | . . . Kills . | . . . Allies Corrupted . | . . . Allies Melted . | . . . Intel | -11 -10 -10 ------- Run | Scr Mat Min Robot Analysis Total 1 | . 1 . Derelict Logs Recovered 1 | . . 1 Drone Launches . | . . . Drone Recoveries . | . . . Exploration | -11 -10 -10 ------------- Run | Scr Mat Min Turns Passed 759 | 58 379 322 Spaces Moved 638 | 48 249 341 Core 5 | 2 . 3 Treads 2 | 2 . . Legs . | . . . Wheels 631 | 44 249 338 Hover . | . . . Flight . | . . . Fastest Speed 50 | 50 80 80 Average Speed 80 | 82 80 81 Slowest Speed 200 | 160 80 200 Overloaded Moves . | . . . Propulsion Burnouts . | . . . Robots Hopped . | . . . Cave-ins Triggered . | . . . Exploration Rate (%) 42 | 4 44 79 Regions Visited 2 Branch Regions 1 Pre-discovered Areas . | . . . Known Exits Taken . | . . . Unknown Exits Taken 2 | 1 1 . Scrap Searched . | . . . Spaces Dug . | . . . Terrain Destroyed . | . . . Melee . | . . . Projectile . | . . . AOE . | . . . Terrain Rammed . | . . . Walls Destroyed . | . . . Machines Disabled . | . . . Actions | -11 -10 -10 --------- Run | Scr Mat Min Total 786 | 60 342 384 Wait 72 | . 33 39 Move 636 | 47 248 341 Hop . | . . . Pick Up 8 | 3 5 . Fast Attach 10 | 7 3 . Attach . | . . . Detach 4 | 1 3 . Swap 2 | 1 1 . Drop 5 | . 5 . Fire 45 | 1 44 . Melee . | . . . Ram 4 | . . 4 Kick . | . . . Crush . | . . . Escape Stasis . | . . . Rewire . | . . . Trap . | . . . Miscellaneous . | . . . Route ------- -11/Scrapyard -10/Materials (discovered 2 exits: [*Mat] / [*Min]) -10/Mines (discovered 2 exits: [*Mat x2]) History --------- Turn | Location | Event 10 | -11/Scrapyard | Discovered new exit (range 16) 59 | -11/Scrapyard | Entered Materials 187 | -10/Materials | Discovered new exit (range 12) 300 | -10/Materials | Build established: Mutant 312 | -10/Materials | Discovered new exit (range 16) 438 | -10/Materials | Entered Mines 459 | -10/Mines | Met a Derelict bent on vengeance 541 | -10/Mines | Discovered new exit (range 15) 551 | -10/Mines | Discovered new exit (range 10) 686 | -10/Mines | Learned 2 Materials zone layouts 735 | -10/Mines | Assembled infested the area 747 | -10/Mines | Core integrity fell below 50% 751 | -10/Mines | Core integrity fell below 20% 760 | -10/Mines | Destroyed by as-15925 with Assembled F-torch Last Messages --------------- 00541_ EXIT=FOUND 00686_ Acquired derelict log, extracted data. Data stored: Materials zone layouts (x2). 00735_ ALERT: Infestation in the mines, dispatching Demolisher response squad. 00744_ Lgt. Ion Engine destroyed. 00745_ Slammed into as-15925. 00745_ Destabilizing: System interference. 00745_ Lgt. Cannon temporarily disabled. 00749_ Wheel destroyed. 00749_ System corrupted by crushing effect (+2). 00755_ Slammed into as-29792. 00755_ Lgt. Cannon permanently disabled. 00755_ Destabilizing: Short circuit. 00756_ Broken Lgt. Cannon destroyed. 00756_ System corrupted by crushing effect (+1). 00757_ Slammed into as-29792. 00758_ Imp. Assault Rifle permanently disabled. 00758_ Destabilizing: Short circuit. 00759_ Broken Imp. Assault Rifle destroyed. Map ----- +----------------------------------------------------+ | ??????????# ##### #### ###### | | ??????????## ##???## ###### ##?# | | ???????????# ##?????## #???### #??# ## | | ???????????## ##???????#### ##????# #??# #? | | ????????????###????????????## ##???# #### #? | | ???????????????????????????## ##??# #? | | ??????????????????????????## #??######### | | ?????????????????????????## ##???????# | | ?????????????????######?## ##??????# # | | ????????????????## ### ##?????# # | | ???????????????## ## ##????# # | | ??????????????## """ #### ###??# # | | ??????????????# """ #?## ##?# # | | ??????????##### """ ### ### # | | ??????????# ## # | | ??????????# ### ## ###### | | ??????????# #### ###?## ### ##????? | | ??????????# #??######????## #?########?????? | | ??????????# ##????????????# #??????????????? | | ??????????# #????????????# #??????????????? | | ??????????## #????????????# #??????????????? | | ???????????# ##???????????? #??????????????? | | ???????##### ####???????? # ##??????????? | | ??????## ##????? a #??????????# | | ??????# aaa#### aaa #?????????# | | ??????# a a@a #????????# | | ??????##< a ###a ### #????????# | | ???????### ##?? ##???????????????????# | | ?????????## #???? #????????????????????? | | ??????????# ##???? #????????????????????? | | ??????????## ###??????#????????????????????? | | ???????????#####?????????????????????????????? | | ?????????????????????????????????????????????? | | ?????????????????????????????????????????????? | | ?????????????????????????????????????????????? | | ?????????????????????????????????????????????? | | ?????????????????????????????????????????????? | | ?????????????????????????????????????????????? | | ?????????????????????????????????????????????? | | ????????????????????????????????????# ######## | | ?????????###????????????????????????# | | ????????## ###?????????????????????###### ## | | ???????## ##?????????????????????????# ## | | ??????## #?????????????????????????# | | ??????# ?????????????????????????## | | ??????# ?????????????????????????# | | ??????# ##????????????????????????# | | ????????# ##???????????????####????## | | ?????????# ###??????????#### ##????## | | ?????????## #####?????## ##????# | +----------------------------------------------------+ Best States ------------- Heat Dissipation 25 Energy Generation 10 Energy Capacity 125 Matter Stores 300 Matter Capacity 300 Sight Range 16 Terrain Scan Density 10 Evasion (%) 44 Item Schematics ----------------- None Robot Schematics ------------------ None Fabricated ------------ Nothing Alien Tech Used ----------------- None Achievements -------------- None Challenges ------------ None Game ------ Seed PowerImprovedMinigun Manual? 0 Play Time 00:07:06 Cumulative 232.3 hours Start 2021.09.18 @ 13:01:06 End 2021.09.18 @ 13:06:24 Sessions 1 Manual Loads 0 Difficulty Rogue Special Mode None Game No. 298 Rogue 211 Adventurer 87 Explorer 0 Win Type - Total 5 Types 3/0/1/1/0/0/0/0/0 Lore% 71 Gallery% 79 Achievement% 67 Wizard Run 0 Options --------- ASCII 0 Keyboard 1 Movement Numpad Keybinds 0 Fullscreen 1 Font 18/Smallcaps Map View 76x50 Tactical HUD 1 Map Filters NONE Filters NONE Steam 1 RUN: 649df7c3-c79b-4d2f-816e-20db142ede1a